[Event "Titled Tuesday Blitz December 13 Early 2022"]
[White "Bilan, Danila"]
[Black "Koellner, Ruben Gideon"]
[WhiteFideId "24161918"]
[BlackFideId "12993093"]
[WhiteElo "2182"]
[BlackElo "2303"]
[Result "0-1"]
[Round "05"]
[TimeControl "180+1"]
[Date "2022.12.14"]
[WhiteClock "0:00:03"]
[BlackClock "0:00:02"]

1. d4 {[%clk 0:02:58]}  d6 {[%clk 0:02:00]} 2. Nf3 {[%clk 0:02:58]}  Nf6 {[%clk 0:01:57]} 3. Bg5 {[%clk 0:02:51]}  Nbd7 {[%clk 0:01:55]} 4. Nbd2 {[%clk 0:02:51]}  e5 {[%clk 0:01:53]} 5. e4 {[%clk 0:02:49]}  Be7 {[%clk 0:01:52]} 6. c3 {[%clk 0:02:42]}  c6 {[%clk 0:01:51]} 7. Bc4 {[%clk 0:02:37]}  h6 {[%clk 0:01:51]} 8. Bh4 {[%clk 0:02:36]}  b5 {[%clk 0:01:51]} 9. Bb3 {[%clk 0:02:35]}  a5 {[%clk 0:01:51]} 10. a4 {[%clk 0:02:35]}  b4 {[%clk 0:01:50]} 11. O-O {[%clk 0:02:34]}  Ba6 {[%clk 0:01:49]} 12. Re1 {[%clk 0:02:34]}  O-O {[%clk 0:01:49]} 13. dxe5 {[%clk 0:02:24]}  dxe5 {[%clk 0:01:50]} 14. Nc4 {[%clk 0:02:23]}  Ne8 {[%clk 0:01:29]} 15. Bg3 {[%clk 0:02:06]}  Bxc4 {[%clk 0:01:17]} 16. Bxc4 {[%clk 0:02:07]}  Qc7 {[%clk 0:01:17]} 17. Nh4 {[%clk 0:01:56]}  Nd6 {[%clk 0:01:14]} 18. Bb3 {[%clk 0:01:48]}  Rfd8 {[%clk 0:01:10]} 19. Ng6 {[%clk 0:01:34]}  Bf6 {[%clk 0:01:06]} 20. Qc2 {[%clk 0:01:05]}  Rab8 {[%clk 0:00:59]} 21. Rad1 {[%clk 0:00:43]}  bxc3 {[%clk 0:00:57]} 22. bxc3 {[%clk 0:00:41]}  Nc5 {[%clk 0:00:57]} 23. Ba2 {[%clk 0:00:41]}  Ndb7 {[%clk 0:00:51]} 24. Nh4 {[%clk 0:00:29]}  Rxd1 {[%clk 0:00:48]} 25. Rxd1 {[%clk 0:00:29]}  Rd8 {[%clk 0:00:48]} 26. Rxd8+ {[%clk 0:00:28]}  Qxd8 {[%clk 0:00:48]} 27. Nf3 {[%clk 0:00:26]}  Qd6 {[%clk 0:00:40]} 28. h4 {[%clk 0:00:23]}  Nd7 {[%clk 0:00:38]} 29. Bxf7+ {[%clk 0:00:17]}  Kxf7 {[%clk 0:00:31]} 30. Qb3+ {[%clk 0:00:17]}  Kg6 {[%clk 0:00:28]} 31. Qxb7 {[%clk 0:00:17]}  Nc5 {[%clk 0:00:28]} 32. h5+ {[%clk 0:00:13]}  Kh7 {[%clk 0:00:19]} 33. Qf7 {[%clk 0:00:12]}  Nxa4 {[%clk 0:00:15]} 34. Qg6+ {[%clk 0:00:10]}  Kg8 {[%clk 0:00:15]} 35. Qe8+ {[%clk 0:00:09]}  Kh7 {[%clk 0:00:14]} 36. Qg6+ {[%clk 0:00:09]}  Kg8 {[%clk 0:00:14]} 37. Qe8+ {[%clk 0:00:09]}  Qf8 {[%clk 0:00:15]} 38. Qxc6 {[%clk 0:00:09]}  Nb2 {[%clk 0:00:14]} 39. Bxe5 {[%clk 0:00:08]}  Bxe5 {[%clk 0:00:12]} 40. Nxe5 {[%clk 0:00:09]}  a4 {[%clk 0:00:12]} 41. Qe6+ {[%clk 0:00:09]}  Kh7 {[%clk 0:00:12]} 42. Qg6+ {[%clk 0:00:09]}  Kg8 {[%clk 0:00:12]} 43. Qe6+ {[%clk 0:00:09]}  Kh7 {[%clk 0:00:12]} 44. Ng6 {[%clk 0:00:09]}  Qd8 {[%clk 0:00:10]} 45. Qf5 {[%clk 0:00:08]}  Kg8 {[%clk 0:00:09]} 46. Qe6+ {[%clk 0:00:07]}  Kh7 {[%clk 0:00:10]} 47. Qf7 {[%clk 0:00:07]}  Qd1+ {[%clk 0:00:09]} 48. Kh2 {[%clk 0:00:07]}  Qxh5+ {[%clk 0:00:10]} 49. Kg1 {[%clk 0:00:08]}  Qxg6 {[%clk 0:00:10]} 50. Qa2 {[%clk 0:00:08]}  Qb6 {[%clk 0:00:09]} 51. e5 {[%clk 0:00:08]}  Qb3 {[%clk 0:00:08]} 52. Qb1+ {[%clk 0:00:08]}  Kg8 {[%clk 0:00:08]} 53. Qf5 {[%clk 0:00:08]}  a3 {[%clk 0:00:07]} 54. e6 {[%clk 0:00:08]}  Qb7 {[%clk 0:00:05]} 55. Qa5 {[%clk 0:00:02]}  Nc4 {[%clk 0:00:04]} 56. Qa4 {[%clk 0:00:02]}  Qc7 {[%clk 0:00:03]} 57. e7 {[%clk 0:00:01]}  Qxe7 {[%clk 0:00:02]} 58. Qxc4+ {[%clk 0:00:01]}  Kh7 {[%clk 0:00:02]} 59. Qa4 {[%clk 0:00:02]}  Qe1+ {[%clk 0:00:01]} 60. Kh2 {[%clk 0:00:02]}  Qxc3 {[%clk 0:00:02]} 61. Qxa3 {[%clk 0:00:03]}  Qxa3 {[%clk 0:00:02]} 0-1


[Site "https://www.chess.com"]

[Event "Titled Tuesday Blitz December 13 Early 2022"]
[White "Bochnicka, Vladimir"]
[Black "Demin, Vladimir"]
[WhiteFideId "14943450"]
[BlackFideId "4167457"]
[WhiteElo "2239"]
[BlackElo "2589"]
[Result "0-1"]
[Round "05"]
[TimeControl "180+1"]
[Date "2022.12.14"]
[WhiteClock "0:00:01"]
[BlackClock "0:01:04"]

1. e4 {[%clk 0:03:00]}  e5 {[%clk 0:02:50]} 2. Nf3 {[%clk 0:03:00]}  Nc6 {[%clk 0:02:45]} 3. Bc4 {[%clk 0:03:00]}  Nf6 {[%clk 0:02:44]} 4. d3 {[%clk 0:03:00]}  h6 {[%clk 0:02:44]} 5. c3 {[%clk 0:02:55]}  d6 {[%clk 0:02:42]} 6. Nbd2 {[%clk 0:02:54]}  g6 {[%clk 0:02:39]} 7. Nf1 {[%clk 0:02:54]}  Bg7 {[%clk 0:02:38]} 8. Ng3 {[%clk 0:02:51]}  O-O {[%clk 0:02:39]} 9. O-O {[%clk 0:02:51]}  Be6 {[%clk 0:02:39]} 10. Bb3 {[%clk 0:02:50]}  d5 {[%clk 0:02:37]} 11. Qe2 {[%clk 0:02:48]}  Re8 {[%clk 0:02:36]} 12. h3 {[%clk 0:02:48]}  Qd7 {[%clk 0:02:35]} 13. Rd1 {[%clk 0:02:45]}  Rad8 {[%clk 0:02:34]} 14. Bc2 {[%clk 0:02:41]}  a5 {[%clk 0:02:30]} 15. Be3 {[%clk 0:02:36]}  b6 {[%clk 0:02:30]} 16. Ba4 {[%clk 0:02:31]}  Nh7 {[%clk 0:02:27]} 17. Bxh6 {[%clk 0:02:29]}  Bxh6 {[%clk 0:02:15]} 18. Nxe5 {[%clk 0:02:29]}  Nxe5 {[%clk 0:02:15]} 19. Bxd7 {[%clk 0:02:29]}  Nxd7 {[%clk 0:02:16]} 20. e5 {[%clk 0:02:20]}  Bg7 {[%clk 0:02:14]} 21. d4 {[%clk 0:02:20]}  c5 {[%clk 0:02:13]} 22. Qb5 {[%clk 0:02:10]}  cxd4 {[%clk 0:02:10]} 23. cxd4 {[%clk 0:02:10]}  f6 {[%clk 0:02:07]} 24. exf6 {[%clk 0:01:54]}  Bxf6 {[%clk 0:02:07]} 25. Rac1 {[%clk 0:01:52]}  Rc8 {[%clk 0:02:03]} 26. Re1 {[%clk 0:01:46]}  Kf7 {[%clk 0:01:57]} 27. Ne2 {[%clk 0:01:30]}  Ng5 {[%clk 0:01:56]} 28. Nf4 {[%clk 0:01:27]}  Ne4 {[%clk 0:01:50]} 29. Rxc8 {[%clk 0:01:24]}  Rxc8 {[%clk 0:01:47]} 30. Nxe6 {[%clk 0:01:01]}  Kxe6 {[%clk 0:01:45]} 31. f3 {[%clk 0:01:01]}  Bxd4+ {[%clk 0:01:44]} 32. Kh1 {[%clk 0:00:59]}  Rc5 {[%clk 0:01:43]} 33. Qd3 {[%clk 0:00:49]}  Bxb2 {[%clk 0:01:39]} 34. fxe4 {[%clk 0:00:49]}  d4 {[%clk 0:01:39]} 35. Qg3 {[%clk 0:00:47]}  Ne5 {[%clk 0:01:38]} 36. Qb3+ {[%clk 0:00:36]}  Nc4 {[%clk 0:01:31]} 37. Rf1 {[%clk 0:00:17]}  b5 {[%clk 0:01:28]} 38. Qf3 {[%clk 0:00:16]}  Kd7 {[%clk 0:01:23]} 39. Qf7+ {[%clk 0:00:14]}  Kc6 {[%clk 0:01:22]} 40. Rf6+ {[%clk 0:00:12]}  Nd6 {[%clk 0:01:22]} 41. e5 {[%clk 0:00:10]}  Rxe5 {[%clk 0:01:16]} 42. Qxg6 {[%clk 0:00:09]}  Rd5 {[%clk 0:01:15]} 43. Qc2+ {[%clk 0:00:07]}  Bc3 {[%clk 0:01:15]} 44. h4 {[%clk 0:00:05]}  Kc5 {[%clk 0:01:14]} 45. g4 {[%clk 0:00:02]}  Nc4 {[%clk 0:01:13]} 46. Rf8 {[%clk 0:00:01]}  Ne3 {[%clk 0:01:12]} 47. Qd3 {[%clk 0:00:02]}  Nc4 {[%clk 0:01:08]} 48. Rf5 {[%clk 0:00:02]}  b4 {[%clk 0:01:04]} 49. Rxd5+ {[%clk 0:00:01]}  Kxd5 {[%clk 0:01:05]} 50. Qf5+ {[%clk 0:00:01]}  Ne5 {[%clk 0:01:04]} 51. g5 {[%clk 0:00:01]}  d3 {[%clk 0:01:04]} 0-1


[Site "https://www.chess.com"]

[Event "Titled Tuesday Blitz December 13 Early 2022"]
[White "Chernobay, Artem"]
[Black "Daneshvar, Bardiya"]
[WhiteFideId "4167406"]
[BlackFideId "12576468"]
[WhiteElo "2474"]
[BlackElo "2429"]
[Result "0-1"]
[Round "05"]
[TimeControl "180+1"]
[Date "2022.12.13"]
[WhiteClock "0:00:04"]
[BlackClock "0:00:36"]

1. e4 {[%clk 0:02:55]}  c6 {[%clk 0:02:57]} 2. d4 {[%clk 0:02:54]}  d5 {[%clk 0:02:58]} 3. Nd2 {[%clk 0:02:55]}  dxe4 {[%clk 0:02:58]} 4. Nxe4 {[%clk 0:02:56]}  Bf5 {[%clk 0:02:58]} 5. Ng3 {[%clk 0:02:56]}  Bg6 {[%clk 0:02:58]} 6. h4 {[%clk 0:02:57]}  h6 {[%clk 0:02:59]} 7. Nf3 {[%clk 0:02:56]}  Nd7 {[%clk 0:02:59]} 8. h5 {[%clk 0:02:56]}  Bh7 {[%clk 0:02:58]} 9. Bd3 {[%clk 0:02:57]}  Bxd3 {[%clk 0:02:59]} 10. Qxd3 {[%clk 0:02:58]}  e6 {[%clk 0:02:59]} 11. Bd2 {[%clk 0:02:58]}  Ngf6 {[%clk 0:02:59]} 12. O-O-O {[%clk 0:02:59]}  Be7 {[%clk 0:03:00]} 13. Ne4 {[%clk 0:02:59]}  O-O {[%clk 0:02:59]} 14. g4 {[%clk 0:02:52]}  Nxg4 {[%clk 0:02:59]} 15. Rhg1 {[%clk 0:02:50]}  f5 {[%clk 0:02:59]} 16. Qb3 {[%clk 0:02:20]}  Rf7 {[%clk 0:02:40]} 17. Ng3 {[%clk 0:01:46]}  Nf8 {[%clk 0:02:29]} 18. Ne5 {[%clk 0:01:41]}  Nxe5 {[%clk 0:02:23]} 19. dxe5 {[%clk 0:01:42]}  Qb6 {[%clk 0:02:12]} 20. Qf3 {[%clk 0:00:35]}  Rd8 {[%clk 0:01:46]} 21. Kb1 {[%clk 0:00:27]}  Rd5 {[%clk 0:01:11]} 22. Bxh6 {[%clk 0:00:25]}  Rxd1+ {[%clk 0:01:09]} 23. Qxd1 {[%clk 0:00:26]}  Qxf2 {[%clk 0:01:10]} 24. Bc1 {[%clk 0:00:19]}  Bh4 {[%clk 0:01:03]} 25. Ne2 {[%clk 0:00:18]}  Qf3 {[%clk 0:00:59]} 26. h6 {[%clk 0:00:15]}  g6 {[%clk 0:00:56]} 27. Rh1 {[%clk 0:00:10]}  Be7 {[%clk 0:00:52]} 28. Qe1 {[%clk 0:00:09]}  c5 {[%clk 0:00:48]} 29. Nc3 {[%clk 0:00:09]}  a6 {[%clk 0:00:45]} 30. Ne2 {[%clk 0:00:09]}  g5 {[%clk 0:00:43]} 31. Bxg5 {[%clk 0:00:06]}  Bxg5 {[%clk 0:00:42]} 32. Rg1 {[%clk 0:00:07]}  Nh7 {[%clk 0:00:39]} 33. Qd2 {[%clk 0:00:06]}  Qf1+ {[%clk 0:00:36]} 34. Nc1 {[%clk 0:00:04]}  Qxg1 {[%clk 0:00:36]} 0-1


[Site "https://www.chess.com"]

[Event "Titled Tuesday Blitz December 13 Early 2022"]
[White "Ciuffoletti, Paolo"]
[Black "Mkrtchian, Lilit"]
[WhiteFideId "807630"]
[BlackFideId "13300601"]
[WhiteElo "2143"]
[BlackElo "2316"]
[Result "0-1"]
[Round "05"]
[TimeControl "180+1"]
[Date "2022.12.14"]
[WhiteClock "0:00:16"]
[BlackClock "0:01:07"]

1. e4 {[%clk 0:03:00]}  e6 {[%clk 0:02:59]} 2. d4 {[%clk 0:03:00]}  d5 {[%clk 0:03:00]} 3. e5 {[%clk 0:03:00]}  c5 {[%clk 0:02:59]} 4. c3 {[%clk 0:03:00]}  Nc6 {[%clk 0:03:00]} 5. Nf3 {[%clk 0:03:00]}  Bd7 {[%clk 0:03:01]} 6. Be2 {[%clk 0:02:59]}  Nge7 {[%clk 0:03:00]} 7. O-O {[%clk 0:02:44]}  cxd4 {[%clk 0:03:00]} 8. cxd4 {[%clk 0:02:44]}  Nf5 {[%clk 0:03:00]} 9. Nc3 {[%clk 0:02:41]}  a6 {[%clk 0:03:01]} 10. Be3 {[%clk 0:01:35]}  Be7 {[%clk 0:02:52]} 11. Bd3 {[%clk 0:01:28]}  Nxe3 {[%clk 0:02:51]} 12. fxe3 {[%clk 0:01:28]}  O-O {[%clk 0:02:46]} 13. a3 {[%clk 0:01:20]}  f6 {[%clk 0:02:43]} 14. e4 {[%clk 0:01:01]}  fxe5 {[%clk 0:02:08]} 15. dxe5 {[%clk 0:00:41]}  d4 {[%clk 0:01:56]} 16. Ne2 {[%clk 0:00:37]}  Qb6 {[%clk 0:01:48]} 17. b4 {[%clk 0:00:33]}  Rad8 {[%clk 0:01:36]} 18. Qb3 {[%clk 0:00:31]}  Bc8 {[%clk 0:01:32]} 19. Rad1 {[%clk 0:00:30]}  Qc7 {[%clk 0:01:24]} 20. Bc4 {[%clk 0:00:29]}  Nxe5 {[%clk 0:01:17]} 21. Bxe6+ {[%clk 0:00:28]}  Kh8 {[%clk 0:01:16]} 22. Nexd4 {[%clk 0:00:21]}  Nxf3+ {[%clk 0:01:07]} 23. Nxf3 {[%clk 0:00:20]}  Qb6+ {[%clk 0:01:07]} 24. Nd4 {[%clk 0:00:16]} 0-1


[Site "https://www.chess.com"]

[Event "Titled Tuesday Blitz December 13 Early 2022"]
[White "Clawitter, Craig"]
[Black "Dias, Joao Batista"]
[WhiteFideId "2023105"]
[BlackFideId "2108240"]
[WhiteElo "2198"]
[BlackElo "1898"]
[Result "0-1"]
[Round "05"]
[TimeControl "180+1"]
[Date "2022.12.14"]
[WhiteClock "0:00:03"]
[BlackClock "0:02:01"]

1. e4 {[%clk 0:03:00]}  c5 {[%clk 0:02:54]} 2. Nf3 {[%clk 0:02:56]}  d6 {[%clk 0:02:54]} 3. d4 {[%clk 0:02:57]}  cxd4 {[%clk 0:02:53]} 4. Nxd4 {[%clk 0:02:57]}  Nc6 {[%clk 0:02:54]} 5. Nc3 {[%clk 0:02:56]}  Nf6 {[%clk 0:02:54]} 6. Bc4 {[%clk 0:02:56]}  e6 {[%clk 0:02:54]} 7. Be3 {[%clk 0:02:55]}  Be7 {[%clk 0:02:54]} 8. Qe2 {[%clk 0:02:55]}  O-O {[%clk 0:02:54]} 9. O-O-O {[%clk 0:02:56]}  a6 {[%clk 0:02:54]} 10. Bb3 {[%clk 0:02:56]}  Nxd4 {[%clk 0:02:54]} 11. Rxd4 {[%clk 0:02:49]}  b5 {[%clk 0:02:53]} 12. g4 {[%clk 0:02:38]}  Nd7 {[%clk 0:02:52]} 13. f4 {[%clk 0:02:28]}  Bb7 {[%clk 0:02:52]} 14. Rf1 {[%clk 0:02:18]}  Rc8 {[%clk 0:02:50]} 15. g5 {[%clk 0:02:11]}  Nc5 {[%clk 0:02:41]} 16. e5 {[%clk 0:01:40]}  Nxb3+ {[%clk 0:02:40]} 17. axb3 {[%clk 0:01:39]}  d5 {[%clk 0:02:40]} 18. f5 {[%clk 0:01:32]}  exf5 {[%clk 0:02:30]} 19. Rxf5 {[%clk 0:01:21]}  Qd7 {[%clk 0:02:29]} 20. Rf6 {[%clk 0:00:41]}  Kh8 {[%clk 0:02:17]} 21. Rh4 {[%clk 0:00:35]}  gxf6 {[%clk 0:02:13]} 22. gxf6 {[%clk 0:00:22]}  Bxf6 {[%clk 0:02:09]} 23. exf6 {[%clk 0:00:13]}  Qf5 {[%clk 0:02:08]} 24. Bd4 {[%clk 0:00:08]}  Qg5+ {[%clk 0:02:04]} 25. Qe3 {[%clk 0:00:03]}  Qxh4 {[%clk 0:02:03]} 26. Qg1 {[%clk 0:00:03]}  Rg8 {[%clk 0:02:01]} 0-1


[Site "https://www.chess.com"]

[Event "Titled Tuesday Blitz December 13 Early 2022"]
[White "Crevatin, Leo"]
[Black "Zaichenko, Daria"]
[WhiteFideId "1726307"]
[BlackFideId "4197453"]
[WhiteElo "2190"]
[BlackElo "2039"]
[Result "1-0"]
[Round "05"]
[TimeControl "180+1"]
[Date "2022.12.14"]
[WhiteClock "0:00:32"]
[BlackClock "0:00:35"]

1. d4 {[%clk 0:03:00]}  d5 {[%clk 0:02:57]} 2. Bf4 {[%clk 0:03:00]}  Nf6 {[%clk 0:02:54]} 3. e3 {[%clk 0:03:01]}  Bf5 {[%clk 0:02:48]} 4. Bd3 {[%clk 0:03:00]}  Bxd3 {[%clk 0:02:47]} 5. cxd3 {[%clk 0:03:01]}  c6 {[%clk 0:02:46]} 6. Nf3 {[%clk 0:02:59]}  e6 {[%clk 0:02:46]} 7. O-O {[%clk 0:02:58]}  Be7 {[%clk 0:02:43]} 8. Qb3 {[%clk 0:02:48]}  b6 {[%clk 0:02:33]} 9. h3 {[%clk 0:02:46]}  O-O {[%clk 0:02:33]} 10. Nc3 {[%clk 0:02:45]}  Nbd7 {[%clk 0:02:30]} 11. Rac1 {[%clk 0:02:44]}  Nh5 {[%clk 0:02:26]} 12. Bh2 {[%clk 0:02:43]}  f5 {[%clk 0:02:25]} 13. Ne2 {[%clk 0:02:39]}  c5 {[%clk 0:02:20]} 14. dxc5 {[%clk 0:02:37]}  Nxc5 {[%clk 0:02:20]} 15. Qd1 {[%clk 0:02:35]}  Bf6 {[%clk 0:02:18]} 16. Ne5 {[%clk 0:02:33]}  Qe8 {[%clk 0:01:57]} 17. Nd4 {[%clk 0:02:28]}  Bxe5 {[%clk 0:01:47]} 18. Bxe5 {[%clk 0:02:29]}  Nd7 {[%clk 0:01:48]} 19. Bd6 {[%clk 0:02:28]}  Rf6 {[%clk 0:01:44]} 20. Nb5 {[%clk 0:02:14]}  Qg6 {[%clk 0:01:43]} 21. Rc7 {[%clk 0:02:08]}  Nc5 {[%clk 0:01:42]} 22. Be5 {[%clk 0:01:58]}  Rf7 {[%clk 0:01:42]} 23. b4 {[%clk 0:01:58]}  Nd7 {[%clk 0:01:36]} 24. Bh2 {[%clk 0:01:44]}  e5 {[%clk 0:01:30]} 25. Qc2 {[%clk 0:01:34]}  f4 {[%clk 0:01:23]} 26. exf4 {[%clk 0:01:34]}  exf4 {[%clk 0:01:19]} 27. Qc6 {[%clk 0:01:32]}  Qxc6 {[%clk 0:01:11]} 28. Rxc6 {[%clk 0:01:33]}  Ne5 {[%clk 0:01:11]} 29. Rd6 {[%clk 0:01:28]}  Nxd3 {[%clk 0:01:09]} 30. Rxd5 {[%clk 0:01:27]}  Nxb4 {[%clk 0:01:09]} 31. Rxh5 {[%clk 0:01:26]}  Nxa2 {[%clk 0:01:07]} 32. Nd6 {[%clk 0:01:23]}  Rf6 {[%clk 0:01:05]} 33. Ne4 {[%clk 0:01:21]}  Re6 {[%clk 0:01:04]} 34. f3 {[%clk 0:01:21]}  Rf8 {[%clk 0:01:01]} 35. Ra1 {[%clk 0:01:20]}  Nb4 {[%clk 0:00:58]} 36. Rxa7 {[%clk 0:01:19]}  h6 {[%clk 0:00:57]} 37. Rb5 {[%clk 0:01:16]}  Nc2 {[%clk 0:00:55]} 38. Rd5 {[%clk 0:01:09]}  Ne3 {[%clk 0:00:47]} 39. Rdd7 {[%clk 0:01:08]}  Rg6 {[%clk 0:00:48]} 40. Rd2 {[%clk 0:00:48]}  Rc8 {[%clk 0:00:44]} 41. Ra1 {[%clk 0:00:44]}  b5 {[%clk 0:00:43]} 42. Bxf4 {[%clk 0:00:44]}  Nc4 {[%clk 0:00:41]} 43. Rc2 {[%clk 0:00:40]}  b4 {[%clk 0:00:40]} 44. Rb1 {[%clk 0:00:40]}  Rb6 {[%clk 0:00:39]} 45. Rb3 {[%clk 0:00:36]}  g5 {[%clk 0:00:35]} 46. Bg3 {[%clk 0:00:32]} 1-0


[Site "https://www.chess.com"]

[Event "Titled Tuesday Blitz December 13 Early 2022"]
[White "Csonka, Balazs"]
[Black "Remizov, Yaroslav"]
[WhiteFideId "742910"]
[BlackFideId "34134015"]
[WhiteElo "2404"]
[BlackElo "2415"]
[Result "1-0"]
[Round "05"]
[TimeControl "180+1"]
[Date "2022.12.13"]
[WhiteClock "0:00:04"]
[BlackClock "0:00:01"]

1. d4 {[%clk 0:03:00]}  Nf6 {[%clk 0:02:55]} 2. c4 {[%clk 0:02:59]}  e6 {[%clk 0:02:54]} 3. Nf3 {[%clk 0:02:58]}  c5 {[%clk 0:02:54]} 4. d5 {[%clk 0:02:55]}  b5 {[%clk 0:02:53]} 5. e4 {[%clk 0:02:51]}  Nxe4 {[%clk 0:02:51]} 6. Bd3 {[%clk 0:02:49]}  Nd6 {[%clk 0:02:45]} 7. cxb5 {[%clk 0:02:49]}  c4 {[%clk 0:02:44]} 8. Bc2 {[%clk 0:02:22]}  exd5 {[%clk 0:02:31]} 9. Nc3 {[%clk 0:02:07]}  Bb7 {[%clk 0:02:15]} 10. O-O {[%clk 0:02:00]}  Be7 {[%clk 0:02:14]} 11. Nxd5 {[%clk 0:01:46]}  O-O {[%clk 0:01:56]} 12. Re1 {[%clk 0:01:09]}  Bf6 {[%clk 0:01:56]} 13. Bf4 {[%clk 0:00:57]}  Nxb5 {[%clk 0:01:56]} 14. a4 {[%clk 0:00:49]}  Bxb2 {[%clk 0:01:55]} 15. Rb1 {[%clk 0:00:45]}  Nc3 {[%clk 0:01:33]} 16. Nxc3 {[%clk 0:00:31]}  Bxc3 {[%clk 0:01:33]} 17. Re3 {[%clk 0:00:32]}  Bxf3 {[%clk 0:00:58]} 18. Qxf3 {[%clk 0:00:33]}  Nc6 {[%clk 0:00:55]} 19. Rxc3 {[%clk 0:00:31]}  Qf6 {[%clk 0:00:52]} 20. Bd2 {[%clk 0:00:21]}  Qxf3 {[%clk 0:00:48]} 21. gxf3 {[%clk 0:00:11]}  d5 {[%clk 0:00:48]} 22. Bf4 {[%clk 0:00:10]}  Nd4 {[%clk 0:00:45]} 23. Kf1 {[%clk 0:00:07]}  Rfe8 {[%clk 0:00:44]} 24. Bg3 {[%clk 0:00:03]}  Rad8 {[%clk 0:00:37]} 25. Rd1 {[%clk 0:00:03]}  Nc6 {[%clk 0:00:27]} 26. Bb1 {[%clk 0:00:03]}  Na5 {[%clk 0:00:23]} 27. Rcc1 {[%clk 0:00:03]}  Nb3 {[%clk 0:00:21]} 28. Rc2 {[%clk 0:00:03]}  Nc5 {[%clk 0:00:21]} 29. Ba2 {[%clk 0:00:03]}  Nxa4 {[%clk 0:00:20]} 30. Ra1 {[%clk 0:00:04]}  Nb6 {[%clk 0:00:19]} 31. Bf4 {[%clk 0:00:03]}  h6 {[%clk 0:00:18]} 32. Bc7 {[%clk 0:00:03]}  Rd7 {[%clk 0:00:19]} 33. Bxb6 {[%clk 0:00:04]}  axb6 {[%clk 0:00:19]} 34. Rd1 {[%clk 0:00:04]}  b5 {[%clk 0:00:19]} 35. Rb2 {[%clk 0:00:04]}  Rb8 {[%clk 0:00:16]} 36. Rb4 {[%clk 0:00:04]}  g6 {[%clk 0:00:12]} 37. Bxc4 {[%clk 0:00:04]}  Rd6 {[%clk 0:00:06]} 38. Rxb5 {[%clk 0:00:03]}  Rxb5 {[%clk 0:00:06]} 39. Bxb5 {[%clk 0:00:04]}  Kg7 {[%clk 0:00:06]} 40. Ba4 {[%clk 0:00:04]}  d4 {[%clk 0:00:07]} 41. Bb3 {[%clk 0:00:05]}  Kf6 {[%clk 0:00:07]} 42. Ke2 {[%clk 0:00:05]}  Ke5 {[%clk 0:00:07]} 43. Rd3 {[%clk 0:00:04]}  f6 {[%clk 0:00:07]} 44. Bc2 {[%clk 0:00:04]}  Kf4 {[%clk 0:00:07]} 45. Kd2 {[%clk 0:00:04]}  f5 {[%clk 0:00:07]} 46. Ra3 {[%clk 0:00:04]}  Rb6 {[%clk 0:00:06]} 47. Ke2 {[%clk 0:00:02]}  Rb2 {[%clk 0:00:06]} 48. Kd2 {[%clk 0:00:03]}  Rb6 {[%clk 0:00:06]} 49. Rd3 {[%clk 0:00:04]}  Rb4 {[%clk 0:00:06]} 50. Bd1 {[%clk 0:00:03]}  Rb2+ {[%clk 0:00:05]} 51. Ke1 {[%clk 0:00:03]}  Rb4 {[%clk 0:00:06]} 52. Be2 {[%clk 0:00:04]}  h5 {[%clk 0:00:05]} 53. Kf1 {[%clk 0:00:04]}  g5 {[%clk 0:00:06]} 54. Kg2 {[%clk 0:00:04]}  g4 {[%clk 0:00:05]} 55. fxg4 {[%clk 0:00:04]}  hxg4 {[%clk 0:00:06]} 56. h3 {[%clk 0:00:04]}  gxh3+ {[%clk 0:00:06]} 57. Rxh3 {[%clk 0:00:05]}  Ke4 {[%clk 0:00:06]} 58. Bd3+ {[%clk 0:00:04]}  Kf4 {[%clk 0:00:06]} 59. Rf3+ {[%clk 0:00:04]}  Ke5 {[%clk 0:00:04]} 60. Bxf5 {[%clk 0:00:04]}  Rc4 {[%clk 0:00:04]} 61. Bd3 {[%clk 0:00:05]}  Rc3 {[%clk 0:00:04]} 62. Rg3 {[%clk 0:00:04]}  Kf4 {[%clk 0:00:04]} 63. Rf3+ {[%clk 0:00:04]}  Ke5 {[%clk 0:00:05]} 64. Kf1 {[%clk 0:00:04]}  Rc1+ {[%clk 0:00:05]} 65. Ke2 {[%clk 0:00:05]}  Ra1 {[%clk 0:00:06]} 66. Rf5+ {[%clk 0:00:05]}  Ke6 {[%clk 0:00:07]} 67. Rh5 {[%clk 0:00:05]}  Kd6 {[%clk 0:00:07]} 68. Kf3 {[%clk 0:00:04]}  Re1 {[%clk 0:00:07]} 69. Rh4 {[%clk 0:00:04]}  Kc5 {[%clk 0:00:07]} 70. Re4 {[%clk 0:00:03]}  Rh1 {[%clk 0:00:07]} 71. Re5+ {[%clk 0:00:03]}  Kb4 {[%clk 0:00:07]} 72. Rd5 {[%clk 0:00:03]}  Kc3 {[%clk 0:00:07]} 73. Bf5 {[%clk 0:00:02]}  Rh5 {[%clk 0:00:05]} 74. Kg4 {[%clk 0:00:02]}  Rh8 {[%clk 0:00:05]} 75. f4 {[%clk 0:00:03]}  Rg8+ {[%clk 0:00:05]} 76. Kh5 {[%clk 0:00:03]}  Rg1 {[%clk 0:00:05]} 77. Bg6 {[%clk 0:00:03]}  Kc4 {[%clk 0:00:05]} 78. Rd8 {[%clk 0:00:02]}  Rh1+ {[%clk 0:00:05]} 79. Kg5 {[%clk 0:00:02]}  Rg1+ {[%clk 0:00:06]} 80. Kf6 {[%clk 0:00:03]}  Rf1 {[%clk 0:00:06]} 81. Ke5 {[%clk 0:00:03]}  Re1+ {[%clk 0:00:07]} 82. Be4 {[%clk 0:00:03]}  Kc5 {[%clk 0:00:03]} 83. Rxd4 {[%clk 0:00:02]}  Ra1 {[%clk 0:00:04]} 84. Rd5+ {[%clk 0:00:03]}  Kb6 {[%clk 0:00:04]} 85. f5 {[%clk 0:00:03]}  Kc7 {[%clk 0:00:05]} 86. f6 {[%clk 0:00:03]}  Rf1 {[%clk 0:00:05]} 87. Rc5+ {[%clk 0:00:04]}  Kd7 {[%clk 0:00:05]} 88. Rc2 {[%clk 0:00:04]}  Ke8 {[%clk 0:00:05]} 89. Ke6 {[%clk 0:00:03]}  Kd8 {[%clk 0:00:04]} 90. Rd2+ {[%clk 0:00:03]}  Kc7 {[%clk 0:00:04]} 91. f7 {[%clk 0:00:03]}  Rf4 {[%clk 0:00:05]} 92. Rd4 {[%clk 0:00:03]}  Kb6 {[%clk 0:00:05]} 93. Ke7 {[%clk 0:00:03]}  Kc5 {[%clk 0:00:05]} 94. Rd5+ {[%clk 0:00:03]}  Kc4 {[%clk 0:00:05]} 95. Re5 {[%clk 0:00:03]}  Kd4 {[%clk 0:00:05]} 96. Re6 {[%clk 0:00:04]}  Ke3 {[%clk 0:00:03]} 97. Bc6+ {[%clk 0:00:04]}  Kd4 {[%clk 0:00:02]} 98. Be8 {[%clk 0:00:04]}  Kc5 {[%clk 0:00:02]} 99. Rf6 {[%clk 0:00:04]}  Re4+ {[%clk 0:00:02]} 100. Re6 {[%clk 0:00:04]}  Rf4 {[%clk 0:00:01]} 101. f8=Q {[%clk 0:00:05]}  Kd5 {[%clk 0:00:01]} 102. Rd6+ {[%clk 0:00:04]}  Ke5 {[%clk 0:00:01]} 103. Qxf4+ {[%clk 0:00:03]}  Kxf4 {[%clk 0:00:01]} 104. Kf6 {[%clk 0:00:04]} 1-0


[Site "https://www.chess.com"]